[Event "14th SRB-ch 2020"]
[Site "Vrnjacka Banja"]
[Date "2020.12.08"]
[Round "3.1"]
[White "Kovacevic, Aleksandar"]
[Black "Lajthajm, Borko"]
[Result "1/2-1/2"]
[ECO "C47"]
[WhiteElo "2480"]
[BlackElo "2383"]
[Annotator "ChessBase"]
[PlyCount "100"]
[EventDate "2020.12.07"]
[EventType "tourn"]
[EventCountry "SRB"]
[SourceTitle "playchess.com"]
[Source "ChessBase"]
[SourceQuality "1"]
[TimeControl "40/5400+30:1800+30"]

1. e4 {[%emt 0:00:00]} e5 {[%emt 0:00:00]} 2. Nf3 {[%emt 0:00:01]} Nf6 {[%emt 0:00:00]} 3. Nc3 {[%emt 0:00:13]} Nc6 {[%emt 0:00:00]} 4. h3 {[%emt 0:00:14]} Bb4 {[%emt 0:00:46]} 5. Nd5 {[%emt 0:00:29]} Ba5 {[%emt 0:00:31]} 6. Bc4 {[%emt 0:03:27]} O-O {[%emt 0:00:54]} 7. Nxf6+ {[%emt 0:09:53]} Qxf6 {[%emt 0:00:40]} 8. O-O {[%emt 0:00:09]} d6 {[%emt 0:00:28]} 9. d3 {[%emt 0:00:24]} h6 {[%emt 0:00:47]} 10. c3 {[%emt 0:00:43]} Bb6 {[%emt 0:00:17]} 11. a4 {[%emt 0:01:10]} Be6 {[%emt 0:01:32]} 12. Nd2 {[%emt 0:02:59]} a6 {[%emt 0:01:18]} 13. Qe2 {[%emt 0:10:35]} Rad8 {[%emt 0:03:24]} 14. b4 {[%emt 0:08:03]} d5 {[%emt 0:06:44]} 15. exd5 {[%emt 0:01:15]} Bxd5 {[%emt 0:00:05]} 16. b5 {[%emt 0:01:55]} axb5 {[%emt 0:00:51]} 17. axb5 {[%emt 0:00:13]} Ne7 {[%emt 0:00:24]} 18. Ba3 {[%emt 0:01:29]} Rfe8 {[%emt 0:00:06]} 19. Bxe7 {[%emt 0:16:44]} Qxe7 {[%emt 0:00:11]} 20. Bxd5 {[%emt 0:07:03]} Rxd5 {[%emt 0:00:20]} 21. c4 {[%emt 0:00:16]} Rd7 {[%emt 0:02:28]} 22. Rad1 {[%emt 0:00:36]} Red8 {[%emt 0:00:51]} 23. Nf3 {[%emt 0:03:20]} Bd4 {[%emt 0:00:20]} 24. Qe4 {[%emt 0:01:02]} b6 {[%emt 0:00:39]} 25. Rfe1 {[%emt 0:00:25]} Qc5 {[%emt 0:01:48]} 26. Nxd4 {[%emt 0:07:09]} Rxd4 {[%emt 0:00:35]} 27. Qxe5 {[%emt 0:00:14]} Qxe5 {[%emt 0:01:03]} 28. Rxe5 {[%emt 0:00:04]} Rxc4 {[%emt 0:01:29]} 29. Re8+ {[%emt 0:01:42]} Rxe8 {[%emt 0:00:14]} 30. dxc4 {[%emt 0:00:05]} Kf8 {[%emt 0:00:24]} 31. Rd7 {[%emt 0:00:26]} Rc8 {[%emt 0:00:15]} 32. Kf1 {[%emt 0:00:16]} Ke8 {[%emt 0:00:33]} 33. Rd2 {[%emt 0:05:51]} Ke7 {[%emt 0:03:00]} 34. Ke2 {[%emt 0:00:47]} Ra8 {[%emt 0:00:07]} 35. Ke3 {[%emt 0:00:40]} Ke6 {[%emt 0:00:07]} 36. h4 {[%emt 0:01:48]} g6 {[%emt 0:00:37]} 37. g3 {[%emt 0:02:21]} h5 {[%emt 0:00:40]} 38. Ke4 {[%emt 0:02:42]} Ra4 {[%emt 0:01:13]} 39. Kd4 {[%emt 0:03:26]} Ra1 {[%emt 0:01:03]} 40. Re2+ {[%emt 0:02:52]} Kd6 {[%emt 0:00:46]} 41. Rd2 {[%emt 0:36:21]} Rc1 {[%emt 0:31:25]} 42. Rd3 {[%emt 0:00:00]} Rc2 {[%emt 0:00:00]} 43. Rf3 {[%emt 0:00:00]} f5 {[%emt 0:00:00]} 44. Rd3 {[%emt 0:00:00]} Re2 {[%emt 0:00:00]} 45. f4 {[%emt 0:00:00]} c6 {[%emt 0:00:00]} 46. bxc6 {[%emt 0:00:00]} Re4+ {[%emt 0:00:00]} 47. Kc3+ {[%emt 0:00:00]} Kxc6 {[%emt 0:00:00]} 48. Rd8 {[%emt 0:00:00]} Re1 {[%emt 0:00:00]} 49. Rd3 {[%emt 0:00:00]} Kc5 {[%emt 0:00:00]} 50. Rd5+ {[%emt 0:00:00]} Kc6 {[%emt 0:00:00]} 1/2-1/2

[Event "14th SRB-ch 2020"]
[Site "Vrnjacka Banja"]
[Date "2020.12.09"]
[Round "4.1"]
[White "Lajthajm, Borko"]
[Black "Todorovic, Goran M"]
[Result "0-1"]
[ECO "B22"]
[WhiteElo "2383"]
[BlackElo "2417"]
[Annotator "ChessBase"]
[PlyCount "118"]
[EventDate "2020.12.07"]
[EventType "tourn"]
[EventCountry "SRB"]
[SourceTitle "playchess.com"]
[Source "ChessBase"]
[SourceQuality "1"]
[TimeControl "40/5400+30:1800+30"]

1. e4 {[%emt 0:00:00]} c5 {[%emt 0:00:00]} 2. c3 {[%emt 0:00:00]} d6 {[%emt 0:00:00]} 3. d4 {[%emt 0:00:00]} Nf6 {[%emt 0:00:01]} 4. dxc5 {[%emt 0:00:00]} Nc6 {[%emt 0:00:13]} 5. Qc2 {[%emt 0:06:37]} dxc5 {[%emt 0:00:34]} 6. Bf4 {[%emt 0:00:26]} g6 {[%emt 0:11:26]} 7. Nd2 {[%emt 0:02:15]} Bg7 {[%emt 0:00:17]} 8. Rd1 {[%emt 0:00:41]} Nd7 {[%emt 0:06:18]} 9. Bb5 {[%emt 0:01:02]} O-O {[%emt 0:01:23]} 10. Ngf3 {[%emt 0:00:26]} Qb6 {[%emt 0:06:04]} 11. a4 {[%emt 0:01:43]} Nde5 {[%emt 0:00:29]} 12. Nxe5 {[%emt 0:06:55]} Nxe5 {[%emt 0:00:25]} 13. O-O {[%emt 0:02:42]} a6 {[%emt 0:14:13]} 14. Be2 {[%emt 0:00:17]} Qc6 {[%emt 0:00:42]} 15. Nc4 {[%emt 0:01:38]} Nxc4 {[%emt 0:10:52]} 16. Bxc4 {[%emt 0:01:39]} Bg4 {[%emt 0:00:26]} 17. f3 {[%emt 0:00:49]} Be6 {[%emt 0:00:07]} 18. Bxe6 {[%emt 0:05:17]} Qxe6 {[%emt 0:00:20]} 19. Rd5 {[%emt 0:00:09]} c4 {[%emt 0:13:54]} 20. Rfd1 {[%emt 0:01:29]} f5 {[%emt 0:00:20]} 21. Be3 {[%emt 0:03:56]} Rac8 {[%emt 0:00:55]} 22. a5 {[%emt 0:00:34]} Rc6 {[%emt 0:09:33]} 23. Bb6 {[%emt 0:04:13]} fxe4 {[%emt 0:05:13]} 24. Qxe4 {[%emt 0:00:23]} Qxe4 {[%emt 0:00:08]} 25. fxe4 {[%emt 0:00:05]} Re6 {[%emt 0:00:04]} 26. Re1 {[%emt 0:00:32]} Rf4 {[%emt 0:00:28]} 27. Rd7 {[%emt 0:01:39]} Rfxe4 {[%emt 0:00:35]} 28. Rxe4 {[%emt 0:01:43]} Rxe4 {[%emt 0:00:01]} 29. Kf1 {[%emt 0:02:27]} Re5 {[%emt 0:01:02]} 30. Rxb7 {[%emt 0:00:10]} Rb5 {[%emt 0:00:23]} 31. Ra7 {[%emt 0:00:11]} Rxb2 {[%emt 0:00:09]} 32. Rxa6 {[%emt 0:00:05]} Bxc3 {[%emt 0:00:11]} 33. Ra8+ {[%emt 0:00:13]} Kf7 {[%emt 0:00:08]} 34. Be3 {[%emt 0:00:10]} Bd2 {[%emt 0:00:51]} 35. Bd4 {[%emt 0:02:35]} c3 {[%emt 0:00:47]} 36. Ke2 {[%emt 0:00:13]} e5 {[%emt 0:02:13]} 37. Be3 {[%emt 0:07:36]} Bxe3+ {[%emt 0:04:46]} 38. Kxe3 {[%emt 0:00:04]} Rxg2 {[%emt 0:00:09]} 39. Ra7+ {[%emt 0:00:26]} Kg8 {[%emt 0:03:16]} 40. Kd3 {[%emt 0:00:04]} Rxh2 {[%emt 0:08:40]} 41. Kxc3 {[%emt 0:30:05]} h5 {[%emt 0:09:05]} 42. Kb3 {[%emt 0:00:00]} Rh1 {[%emt 0:02:14]} 43. Kb2 {[%emt 0:00:00]} Rd1 {[%emt 0:03:15]} 44. Rb7 {[%emt 0:00:00]} Rd6 {[%emt 0:07:33]} 45. Rb6 {[%emt 0:00:00]} Rd5 {[%emt 0:01:24]} 46. Rxg6+ {[%emt 0:00:00]} Kh7 {[%emt 0:00:05]} 47. Ra6 {[%emt 0:00:00]} h4 {[%emt 0:00:06]} 48. Ra7+ {[%emt 0:00:00]} Kg6 {[%emt 0:00:33]} 49. Ra6+ {[%emt 0:00:00]} Kg5 {[%emt 0:00:45]} 50. Ra8 {[%emt 0:00:00]} h3 {[%emt 0:00:17]} 51. a6 {[%emt 0:00:00]} Ra5 {[%emt 0:00:42]} 52. Kc3 {[%emt 0:00:00]} h2 {[%emt 0:02:01]} 53. Rh8 {[%emt 0:00:00]} Ra3+ {[%emt 0:02:02]} 54. Kc4 {[%emt 0:00:00]} Rxa6 {[%emt 0:02:05]} 55. Rxh2 {[%emt 0:00:00]} Rd6 {[%emt 0:00:02]} 56. Rf2 {[%emt 0:00:00]} e4 {[%emt 0:00:23]} 57. Kc3 {[%emt 0:00:00]} Kg4 {[%emt 0:00:25]} 58. Kc2 {[%emt 0:00:00]} e3 {[%emt 0:00:23]} 59. Rf7 {[%emt 0:00:00]} e2 {[%emt 0:00:56]} 0-1

[Event "14th SRB-ch 2020"]
[Site "Vrnjacka Banja"]
[Date "2020.12.09"]
[Round "4.5"]
[White "Kovacevic, Aleksandar"]
[Black "Budisavljevic, Luka"]
[Result "1-0"]
[ECO "B22"]
[WhiteElo "2480"]
[BlackElo "2492"]
[Annotator "ChessBase"]
[PlyCount "113"]
[EventDate "2020.12.07"]
[EventType "tourn"]
[EventCountry "SRB"]
[SourceTitle "playchess.com"]
[Source "ChessBase"]
[SourceQuality "1"]
[TimeControl "40/5400+30:1800+30"]

1. e4 {[%emt 1:30:30]} c5 {[%emt 1:30:30]} 2. Nf3 {[%emt 0:00:30]} e6 {[%emt 0:00:30]} 3. c3 {[%emt 0:00:30]} d5 {[%emt 0:00:30]} 4. exd5 {[%emt 0:00:30]} Qxd5 {[%emt 0:00:30]} 5. d4 {[%emt 0:00:30]} Nf6 {[%emt 0:00:30]} 6. Na3 {[%emt 0:00:30]} Nc6 {[%emt 0:00:30]} 7. Be3 {[%emt 0:00:30]} cxd4 {[%emt 0:00:30]} 8. Nb5 {[%emt 0:00:30]} Qd8 {[%emt 0:00:30]} 9. Nbxd4 {[%emt 0:00:30]} Nd5 {[%emt 0:00:30]} 10. Bg5 {[%emt 0:00:30]} f6 {[%emt 0:00:30]} 11. Nxc6 {[%emt 0:00:30]} bxc6 {[%emt 0:00:30]} 12. Bd2 {[%emt 0:00:30]} Bd6 {[%emt 0:00:30]} 13. c4 {[%emt 0:00:30]} Ne7 {[%emt 0:00:30]} 14. Bd3 {[%emt 0:00:00]} c5 {[%emt 0:00:00]} 15. Qc2 {[%emt 0:00:00]} f5 {[%emt 0:00:00]} 16. Bc3 {[%emt 0:00:00]} O-O {[%emt 0:00:00]} 17. O-O-O {[%emt 0:00:00]} Qc7 {[%emt 0:00:00]} 18. Rhe1 {[%emt 0:00:00]} Nc6 {[%emt 0:00:00]} 19. Qe2 {[%emt 0:00:00]} a5 {[%emt 0:00:00]} 20. g3 {[%emt 0:00:00]} Be7 {[%emt 0:00:00]} 21. Bc2 {[%emt 0:00:00]} Qb6 {[%emt 0:00:00]} 22. Ba4 {[%emt 0:00:00]} Nb4 {[%emt 0:00:00]} 23. b3 {[%emt 0:00:00]} Bf6 {[%emt 0:00:00]} 24. Be5 {[%emt 0:00:00]} Na6 {[%emt 0:00:00]} 25. Rd6 {[%emt 0:00:00]} Qb4 {[%emt 0:00:00]} 26. Bxf6 {[%emt 0:00:00]} gxf6 {[%emt 0:00:00]} 27. Kb2 {[%emt 0:00:00]} Nc7 {[%emt 0:00:00]} 28. a3 {[%emt 0:00:00]} Qb8 {[%emt 0:00:00]} 29. Red1 {[%emt 0:00:00]} Ra7 {[%emt 0:00:26]} 30. Rd8 {[%emt 0:00:00]} Na8 {[%emt 0:00:43]} 31. Qe3 {[%emt 0:00:00]} Raf7 {[%emt 0:01:44]} 32. Be8 {[%emt 0:00:00]} Rc7 {[%emt 0:01:54]} 33. Qh6 {[%emt 0:01:52]} Rb7 {[%emt 0:01:51]} 34. Bb5 {[%emt 0:04:03]} Rbf7 {[%emt 0:00:02]} 35. Qe3 {[%emt 0:05:05]} Qc7 {[%emt 0:04:20]} 36. R8d6 {[%emt 0:00:30]} Qa7 {[%emt 0:00:30]} 37. Rc6 {[%emt 0:00:30]} Rc7 {[%emt 0:00:30]} 38. Rdd6 {[%emt 0:00:30]} Kg7 {[%emt 0:00:30]} 39. Ne1 {[%emt 0:00:30]} Rff7 {[%emt 0:00:30]} 40. Nd3 {[%emt 0:00:30]} Rxc6 {[%emt 0:00:30]} 41. Rxc6 {[%emt 0:30:30]} Qb8 {[%emt 0:30:30]} 42. Nxc5 {[%emt 0:00:30]} Nc7 {[%emt 0:00:30]} 43. a4 {[%emt 0:00:30]} e5 {[%emt 0:00:30]} 44. Qd2 {[%emt 0:00:30]} Bb7 {[%emt 0:00:30]} 45. Rd6 {[%emt 0:00:30]} Qa7 {[%emt 0:00:30]} 46. Qe3 {[%emt 0:00:30]} Qb8 {[%emt 0:00:30]} 47. Nd7 {[%emt 0:00:30]} Qh8 {[%emt 0:00:30]} 48. Nxe5 {[%emt 0:00:30]} Re7 {[%emt 0:00:30]} 49. Rd7 {[%emt 0:00:30]} Rxd7 {[%emt 0:00:30]} 50. Nxd7 {[%emt 0:00:30]} Qd8 {[%emt 0:00:30]} 51. Nc5 {[%emt 0:00:30]} Be4 {[%emt 0:00:30]} 52. Bd7 {[%emt 0:00:30]} Qe7 {[%emt 0:00:30]} 53. Qd4 {[%emt 0:00:30]} h5 {[%emt 0:00:30]} 54. Nxe4 {[%emt 0:00:30]} fxe4 {[%emt 0:00:30]} 55. Bf5 {[%emt 0:00:30]} Qb4 {[%emt 0:00:30]} 56. Qd7+ {[%emt 0:00:30]} Kf8 {[%emt 0:00:30]} 57. Bg6 {[%emt 0:00:30]} 1-0

[Event "14th SRB-ch 2020"]
[Site "Vrnjacka Banja"]
[Date "2020.12.11"]
[Round "7.3"]
[White "Cabarkapa, Novak"]
[Black "Kovacevic, Aleksandar"]
[Result "0-1"]
[ECO "E14"]
[WhiteElo "2463"]
[BlackElo "2480"]
[Annotator "ChessBase"]
[PlyCount "74"]
[EventDate "2020.12.07"]
[EventType "tourn"]
[EventCountry "SRB"]
[SourceTitle "playchess.com"]
[Source "ChessBase"]
[SourceQuality "1"]
[TimeControl "40/5400+30:1800+30"]

1. c4 {[%emt 0:00:00]} e6 {[%emt 0:00:00]} 2. Nc3 {[%emt 0:00:00]} d5 {[%emt 0:00:15]} 3. e3 {[%emt 0:00:51]} Nf6 {[%emt 0:00:53]} 4. Nf3 {[%emt 0:00:08]} Be7 {[%emt 0:02:01]} 5. b3 {[%emt 0:01:03]} O-O {[%emt 0:01:47]} 6. Bb2 {[%emt 0:00:07]} b6 {[%emt 0:03:16]} 7. cxd5 {[%emt 0:00:16]} exd5 {[%emt 0:01:11]} 8. d4 {[%emt 0:00:10]} c5 {[%emt 0:05:19]} 9. Be2 {[%emt 0:10:14]} Bb7 {[%emt 0:01:25]} 10. O-O {[%emt 0:01:18]} Nbd7 {[%emt 0:01:16]} 11. Rc1 {[%emt 0:00:49]} Rc8 {[%emt 0:00:55]} 12. Bd3 {[%emt 0:00:54]} Bd6 {[%emt 0:06:49]} 13. Ne2 {[%emt 0:03:05]} Re8 {[%emt 0:20:49]} 14. Ng3 {[%emt 0:10:55]} Ne4 {[%emt 0:09:28]} 15. dxc5 {[%emt 0:15:13]} Nxg3 {[%emt 0:00:20]} 16. fxg3 {[%emt 0:06:50]} Bxc5 {[%emt 0:10:42]} 17. Nh4 {[%emt 0:09:26]} Bxe3+ {[%emt 0:02:00]} 18. Kh1 {[%emt 0:00:06]} Rxc1 {[%emt 0:04:37]} 19. Bxc1 {[%emt 0:14:28]} Bxc1 {[%emt 0:00:12]} 20. Qxc1 {[%emt 0:00:31]} Ne5 {[%emt 0:01:46]} 21. Qf4 {[%emt 0:04:36]} d4 {[%emt 0:05:29]} 22. Bc4 {[%emt 0:03:06]} g5 {[%emt 0:12:19]} 23. Qf2 {[%emt 0:11:03]} Bd5 {[%emt 0:03:48]} 24. Bxd5 {[%emt 0:01:15]} Qxd5 {[%emt 0:00:03]} 25. Nf5 {[%emt 0:00:27]} d3 {[%emt 0:00:22]} 26. Nh6+ {[%emt 0:01:08]} Kf8 {[%emt 0:00:13]} 27. Qf6 {[%emt 0:00:09]} Re6 {[%emt 0:02:19]} 28. Qh8+ {[%emt 0:00:48]} Ke7 {[%emt 0:00:05]} 29. Ng8+ {[%emt 0:00:27]} Kd6 {[%emt 0:01:40]} 30. Nf6 {[%emt 0:00:11]} Qb7 {[%emt 0:00:16]} 31. Qd8+ {[%emt 0:01:34]} Nd7 {[%emt 0:00:13]} 32. Ne8+ {[%emt 0:00:17]} Kc6 {[%emt 0:01:43]} 33. Ng7 {[%emt 0:00:40]} Re5 {[%emt 0:00:38]} 34. Nf5 {[%emt 0:02:42]} d2 {[%emt 0:00:29]} 35. Nd4+ {[%emt 0:01:13]} Kd6 {[%emt 0:00:04]} 36. Nf3 {[%emt 0:00:27]} Qxf3 {[%emt 0:00:14]} 37. gxf3 {[%emt 0:01:20]} Re1 {[%emt 0:00:07]} 0-1

[Event "14th SRB-ch 2020"]
[Site "Vrnjacka Banja"]
[Date "2020.12.12"]
[Round "8.4"]
[White "Budisavljevic, Luka"]
[Black "Cabarkapa, Novak"]
[Result "1-0"]
[ECO "D90"]
[WhiteElo "2492"]
[BlackElo "2463"]
[Annotator "RC"]
[PlyCount "121"]
[EventDate "2020.12.07"]
[EventType "tourn"]
[EventCountry "SRB"]
[SourceTitle "playchess.com"]
[Source "ChessBase"]
[SourceQuality "1"]
[TimeControl "40/5400+30:1800+30"]

1. d4 {[%emt 0:00:15]} Nf6 {[%emt 0:00:00]} 2. c4 {[%emt 0:00:11]} g6 {[%emt 0:00:00]} 3. Nc3 {[%emt 0:00:16]} d5 {[%emt 0:00:00]} 4. Nf3 {[%emt 0:00:16]} Bg7 {[%emt 0:00:04]} 5. h4 {[%emt 0:00:33]} dxc4 {[%emt 0:00:46]} 6. e4 {[%emt 0:00:17]} c5 {[%emt 0:01:22]} 7. d5 {[%emt 0:00:23]} b5 {[%emt 0:00:41]} 8. h5 {[%emt 0:00:37]} O-O {[%emt 0:00:40]} 9. hxg6 {[%emt 0:00:13]} fxg6 {[%emt 0:00:20]} 10. e5 {[%emt 0:00:12]} Ng4 {[%emt 0:00:26]} 11. d6 {[%emt 0:00:38]} e6 {[%emt 0:00:20]} 12. Rxh7 {[%emt 0:00:36]} Rf5 {[%emt 0:00:38]} 13. Rh3 {[%emt 0:00:24]} Nc6 {[%emt 0:05:04]} 14. a4 {[%emt 0:00:41]} b4 {[%emt 0:01:20]} 15. Nb5 {[%emt 0:00:57]} Ncxe5 {[%emt 0:08:42]} 16. Nxe5 {[%emt 0:12:53]} Nxe5 {[%emt 0:05:35]} 17. g4 {[%emt 0:02:06]} Rf8 {[%emt 0:12:11]} 18. Be3 {[%emt 0:22:21]} Bb7 {[%emt 0:07:22]} 19. Be2 {[%emt 0:17:40]} Qf6 {[%emt 0:12:29]} 20. Bxc5 {[%emt 0:04:09]} a6 {[%emt 0:10:08]} 21. Nc7 {[%emt 0:01:49]} Rad8 {[%emt 0:00:15]} 22. Qd4 {[%emt 0:11:36]} Rf7 {[%emt 0:06:29]} 23. f4 {[%emt 0:10:08]} Nd3+ {[%emt 0:09:35]} 24. Bxd3 {[%emt 0:00:05]} Qxd4 {[%emt 0:02:36]} 25. Bxd4 {[%emt 0:00:02]} Bxd4 {[%emt 0:03:10]} 26. Bxc4 {[%emt 0:01:22]} Rxd6 {[%emt 0:01:27]} 27. Bxe6 {[%emt 0:07:27]} Bxb2 {[%emt 0:01:21]} 28. Rd1 {[%emt 0:01:14]} Rxd1+ 29. Kxd1 {[%emt 0:00:01]} Bc8 {[%emt 0:03:03]} 30. Bxf7+ {[%emt 0:00:59]} Kxf7 {[%emt 0:00:05]} 31. Rg3 {[%emt 0:02:34]} g5 {[%emt 0:01:23]} 32. Nd5 {[%emt 0:02:00]} gxf4 {[%emt 0:03:51]} 33. Nxf4 {[%emt 0:00:28]} Be5 {[%emt 0:02:17]} 34. Kc2 {[%emt 0:00:01]} Bb7 {[%emt 0:01:01]} 35. Rg1 {[%emt 0:00:38]} a5 {[%emt 0:00:40]} 36. Nd3 {[%emt 0:01:03]} Bg7 {[%emt 0:01:26]} 37. Rf1+ {[%emt 0:00:31]} Ke7 {[%emt 0:00:54]} 38. Rf5 {[%emt 0:00:48]} b3+ {[%emt 0:00:26]} 39. Kd2 {[%emt 0:00:28]} b2 {[%emt 0:00:36]} 40. Nxb2 {[%emt 0:00:25]} Bxb2 {[%emt 0:00:37]} 41. Rb5 {[%emt 0:30:13]} Bc6 {[%emt 0:01:32]} 42. Rxb2 {[%emt 0:00:00]} Bxa4 {[%emt 0:02:36]} 43. Ke3 {[%emt 0:00:00]} Bd1 {[%emt 0:05:15]} 44. Kf4 {[%emt 0:00:00]} a4 {[%emt 0:00:45]} 45. Rb6 {[%emt 0:00:00]} Be2 {[%emt 0:07:56]} 46. Kf5 {[%emt 0:00:00]} Bd3+ {[%emt 0:02:41]} 47. Ke5 {[%emt 0:00:00]} Kf7 {[%emt 0:00:23]} 48. Rb7+ {[%emt 0:00:00]} Kg6 {[%emt 0:00:25]} 49. Kf4 {[%emt 0:00:00]} Be2 {[%emt 0:03:13]} 50. Rb4 {[%emt 0:00:00]} Bd1 {[%emt 0:00:11]} 51. Rb6+ {[%emt 0:00:00]} Kf7 {[%emt 0:00:21]} 52. Kg5 {[%emt 0:00:00]} Ke7 {[%emt 0:00:47]} 53. Kf4 {[%emt 0:00:00]} Be2 {[%emt 0:01:07]} 54. g5 {[%emt 0:00:00]} Bd3 {[%emt 0:01:18]} 55. Rb7+ {[%emt 0:00:00]} Ke6 {[%emt 0:01:26]} 56. Ra7 {[%emt 0:00:57]} Bc2 {[%emt 0:01:33]} 57. Rc7 {[%emt 0:02:18]} Bb1 {[%emt 0:02:01]} 58. Ra7 {[%emt 0:02:00]} Bc2 {[%emt 0:00:07]} 59. Kg4 {[%emt 0:01:16]} Bd1+ {[%emt 0:01:29]} 60. Kh4 {[%emt 0:00:17]} Be2 {[%emt 0:02:32]} 61. g6 {[%emt 0:02:07]} 1-0

[Event "14th SRB-ch 2020"]
[Site "Vrnjacka Banja"]
[Date "2020.12.13"]
[Round "9.3"]
[White "Todorovic, Goran M"]
[Black "Budisavljevic, Luka"]
[Result "1-0"]
[ECO "B43"]
[WhiteElo "2417"]
[BlackElo "2492"]
[Annotator "RC"]
[PlyCount "67"]
[EventDate "2020.12.07"]
[EventType "tourn"]
[EventCountry "SRB"]
[SourceTitle "playchess.com"]
[Source "ChessBase"]
[SourceQuality "1"]
[TimeControl "40/5400+30:1800+30"]

1. e4 {[%emt 0:00:00]} c5 {[%emt 0:00:56]} 2. Nf3 {[%emt 0:00:00]} a6 {[%emt 0:00:44]} 3. Nc3 {[%emt 0:02:26]} e6 {[%emt 0:00:14]} 4. d4 {[%emt 0:01:18]} cxd4 {[%emt 0:00:08]} 5. Nxd4 {[%emt 0:00:05]} b5 {[%emt 0:00:06]} 6. Bd3 {[%emt 0:00:12]} Qb6 {[%emt 0:00:33]} 7. Nb3 {[%emt 0:00:17]} Qc7 {[%emt 0:00:06]} 8. Qf3 {[%emt 0:00:39]} b4 {[%emt 0:14:52]} 9. Nb1 {[%emt 0:04:45]} Nc6 {[%emt 0:01:54]} 10. O-O {[%emt 0:02:49]} Nf6 {[%emt 0:08:39]} 11. a3 {[%emt 0:02:49]} Bb7 {[%emt 0:02:04]} 12. axb4 {[%emt 0:04:53]} Bxb4 {[%emt 0:01:14]} 13. Qe2 {[%emt 0:04:06]} O-O {[%emt 0:04:38]} 14. Bg5 {[%emt 0:05:13]} Be7 {[%emt 0:00:46]} 15. Nc3 {[%emt 0:00:15]} Ne5 {[%emt 0:06:04]} 16. Na5 {[%emt 0:10:47]} Rab8 {[%emt 0:16:41]} 17. f4 {[%emt 0:10:30]} Nxd3 {[%emt 0:00:58]} 18. cxd3 {[%emt 0:00:08]} d5 {[%emt 0:02:48]} 19. e5 {[%emt 0:03:04]} Bc5+ {[%emt 0:00:56]} 20. Kh1 {[%emt 0:00:07]} Nd7 {[%emt 0:00:29]} 21. Nb3 {[%emt 0:13:40]} Ba8 {[%emt 0:04:29]} 22. Nxc5 {[%emt 0:04:45]} Nxc5 {[%emt 0:00:19]} 23. d4 {[%emt 0:02:27]} Nb3 {[%emt 0:01:36]} 24. Rad1 {[%emt 0:00:41]} Rb4 {[%emt 0:00:53]} 25. Qf2 {[%emt 0:01:51]} Qa7 {[%emt 0:06:53]} 26. f5 {[%emt 0:02:00]} exf5 {[%emt 0:03:24]} 27. Rd3 {[%emt 0:02:00]} Re8 {[%emt 0:04:39]} 28. Rfd1 {[%emt 0:05:18]} Na5 {[%emt 0:07:53]} 29. Qh4 {[%emt 0:05:09]} Qb6 {[%emt 0:03:14]} 30. Rg3 {[%emt 0:03:02]} Kh8 {[%emt 0:01:33]} 31. Bf6 {[%emt 0:01:31]} gxf6 {[%emt 0:00:40]} 32. Qh6 {[%emt 0:00:30]} Rg8 {[%emt 0:00:22]} 33. Rxg8+ {[%emt 0:09:13]} Kxg8 {[%emt 0:05:45]} 34. exf6 {[%emt 0:00:00]} 1-0